[Event "FIDE Grand Swiss 2023"]
[Site "Villa Marina, Douglas, Isle of Man"]
[Date "2023.10.27"]
[Round "3.9"]
[White "Shirov, Alexei"]
[Black "Abdusattorov, Nodirbek"]
[Result "1/2-1/2"]
[WhiteElo "2655"]
[BlackElo "2716"]
[EventDate "2023.10.25"]
[ECO "C02"]
[PlyCount "230"]
[BlackFideId "14204118"]
[TimeControl "40/100 + 20/50 + 15 + 30s/move"]
[WhiteFideId "2209390"]

1.e4 {[%clk 01:40:57] [%emt 00:00:02]} 1...e6 {[%clk 01:39:32] [%emt 00:01:29]} 
2.d4 {[%clk 01:41:14] [%emt 00:00:12]} 2...d5 {[%clk 01:39:48] [%emt 00:00:15]} 
3.e5 {[%clk 01:39:40] [%emt 00:02:03]} 3...c5 {[%clk 01:39:34] [%emt 00:00:45]} 
4.c3 {[%clk 01:40:05] [%emt 00:00:04]} 4...Nc6 {[%clk 01:39:16] [%emt 00:00:48]} 
5.Nf3 {[%clk 01:40:29] [%emt 00:00:06]} 5...Bd7 {[%clk 01:39:38] [%emt
00:00:09]} 6.Be2 {[%clk 01:39:33] [%emt 00:01:26]} 6...Nge7 {[%clk 01:39:58]
[%emt 00:00:10]} 7.O-O {[%clk 01:39:23] [%emt 00:00:39]} 7...Ng6 {[%clk
01:40:17] [%emt 00:00:12]} 8.Na3 {[%clk 01:39:30] [%emt 00:00:24]} 8...Be7 
{[%clk 01:40:35] [%emt 00:00:12]} 9.Nc2 {[%clk 01:39:54] [%emt 00:00:06]} 
9...O-O {[%clk 01:40:58] [%emt 00:00:07]} 10.Bd3 {[%clk 01:40:08] [%emt
00:00:16]} 10...a5 {[%clk 01:41:17] [%emt 00:00:11]} 11.Re1 {[%clk 01:13:03]
[%emt 00:27:34]} 11...a4 {[%clk 01:36:14] [%emt 00:05:34]} 12.g3 {[%clk
01:06:13] [%emt 00:07:20]} 12...c4 {[%clk 01:22:34] [%emt 00:14:11]} 13.Bf1 
{[%clk 01:05:17] [%emt 00:01:24]} 13...f6 {[%clk 01:21:33] [%emt 00:01:31]} 
14.exf6 {[%clk 01:05:19] [%emt 00:00:27]} 14...Bxf6 {[%clk 01:11:50] [%emt
00:10:14]} 15.h4 {[%clk 00:57:49] [%emt 00:08:00]} 15...Qe8 {[%clk 01:05:45]
[%emt 00:06:36]} 16.Bh3 {[%clk 00:37:20] [%emt 00:20:58]} 16...Qf7 {[%clk
00:57:30] [%emt 00:08:45]} 17.h5 {[%clk 00:34:41] [%emt 00:03:09]} 17...Nge7 
{[%clk 00:57:44] [%emt 00:00:17]} 18.Bg4 {[%clk 00:33:40] [%emt 00:01:30]} 
18...Kh8 {[%clk 00:56:45] [%emt 00:01:29]} 19.Bf4 {[%clk 00:31:03] [%emt
00:03:07]} 19...Ng8 {[%clk 00:51:44] [%emt 00:05:30]} 20.Bd6 {[%clk 00:27:42]
[%emt 00:03:52]} 20...Be7 {[%clk 00:34:35] [%emt 00:17:40]} 21.Bxe7 {[%clk
00:28:06] [%emt 00:00:06]} 21...Ngxe7 {[%clk 00:35:02] [%emt 00:00:03]} 22.Qd2 
{[%clk 00:26:03] [%emt 00:02:32]} 22...Nf5 {[%clk 00:31:07] [%emt 00:04:26]} 
23.Qf4 {[%clk 00:17:09] [%emt 00:09:23]} 23...Qg8 {[%clk 00:26:51] [%emt
00:04:48]} 24.Qc7 {[%clk 00:16:04] [%emt 00:01:35]} 24...Nh6 {[%clk 00:27:13]
[%emt 00:00:08]} 25.Qxd7 {[%clk 00:02:54] [%emt 00:13:40]} 25...Nxg4 {[%clk
00:27:38] [%emt 00:00:05]} 26.Ng5 {[%clk 00:02:37] [%emt 00:00:46]} 26...Rxf2 
{[%clk 00:20:48] [%emt 00:07:20]} 27.Rf1 {[%clk 00:01:45] [%emt 00:01:22]} 
27...Raf8 {[%clk 00:19:34] [%emt 00:01:44]} 28.Qxe6 {[%clk 00:00:57] [%emt
00:01:18]} 28...Rxf1+ {[%clk 00:04:39] [%emt 00:15:26]} 29.Rxf1 {[%clk 00:01:23]
[%emt 00:00:04]} 29...Nf6 {[%clk 00:04:09] [%emt 00:01:00]} 30.h6 {[%clk
00:01:09] [%emt 00:00:43]} 30...gxh6 {[%clk 00:03:12] [%emt 00:01:28]} 31.Rxf6 
{[%clk 00:01:03] [%emt 00:00:36]} 31...hxg5 {[%clk 00:03:37] [%emt 00:00:05]} 
32.Rxf8 {[%clk 00:01:29] [%emt 00:00:04]} 32...Qxf8 {[%clk 00:04:05] [%emt
00:00:03]} 33.Qxd5 {[%clk 00:01:51] [%emt 00:00:07]} 33...h6 {[%clk 00:03:22]
[%emt 00:01:13]} 34.Ne3 {[%clk 00:00:58] [%emt 00:01:23]} 34...a3 {[%clk
00:03:32] [%emt 00:00:21]} 35.bxa3 {[%clk 00:01:24] [%emt 00:00:04]} 35...Qxa3 
{[%clk 00:03:56] [%emt 00:00:05]} 36.Qxc4 {[%clk 00:00:52] [%emt 00:01:02]} 
36...Qb2 {[%clk 00:01:16] [%emt 00:03:10]} 37.Qe6 {[%clk 00:00:48] [%emt
00:00:33]} 37...Qxc3 {[%clk 00:01:25] [%emt 00:00:22]} 38.Qxh6+ {[%clk 00:00:49]
[%emt 00:00:28]} 38...Kg8 {[%clk 00:01:52] [%emt 00:00:04]} 39.Qe6+ {[%clk
00:00:46] [%emt 00:00:33]} 39...Kf8 {[%clk 00:01:59] [%emt 00:00:23]} 40.Qc8+ 
{[%clk 00:00:58] [%emt 00:00:17]} 40...Kf7 {[%clk 00:00:39] [%emt 00:01:49]} 
41.Qxb7+ {[%clk 00:33:31] [%emt 00:17:59]} 41...Kg6 {[%clk 00:50:56] [%emt
00:00:13]} 42.Qb1+ {[%clk 00:33:56] [%emt 00:00:04]} 42...Kg7 {[%clk 00:51:04]
[%emt 00:00:21]} 43.Nf5+ {[%clk 00:33:45] [%emt 00:00:42]} 43...Kf6 {[%clk
00:40:19] [%emt 00:11:16]} 44.Qf1 {[%clk 00:33:33] [%emt 00:00:42]} 44...Ke6 
{[%clk 00:40:09] [%emt 00:00:40]} 45.g4 {[%clk 00:33:13] [%emt 00:00:50]} 
45...Kd7 {[%clk 00:39:20] [%emt 00:01:19]} 46.Qe2 {[%clk 00:31:20] [%emt
00:02:22]} 46...Nb4 {[%clk 00:31:41] [%emt 00:08:10]} 47.Kg2 {[%clk 00:20:53]
[%emt 00:10:57]} 47...Qc6+ {[%clk 00:29:32] [%emt 00:02:39]} 48.Kf2 {[%clk
00:20:55] [%emt 00:00:28]} 48...Nd5 {[%clk 00:29:40] [%emt 00:00:23]} 49.Qe4 
{[%clk 00:11:48] [%emt 00:09:35]} 49...Qa8 {[%clk 00:18:40] [%emt 00:11:28]} 
50.a3 {[%clk 00:11:55] [%emt 00:00:26]} 50...Qa5 {[%clk 00:18:12] [%emt
00:00:58]} 51.Ne3 {[%clk 00:10:07] [%emt 00:02:18]} 51...Qd2+ {[%clk 00:13:46]
[%emt 00:04:56]} 52.Kf3 {[%clk 00:10:27] [%emt 00:00:10]} 52...Nxe3 {[%clk
00:13:55] [%emt 00:00:21]} 53.Qxe3 {[%clk 00:10:53] [%emt 00:00:04]} 53...Qd1+ 
{[%clk 00:14:19] [%emt 00:00:06]} 54.Kg3 {[%clk 00:11:17] [%emt 00:00:05]} 
54...Qh1 {[%clk 00:14:13] [%emt 00:00:37]} 55.Qxg5 {[%clk 00:10:17] [%emt
00:01:30]} 55...Qg1+ {[%clk 00:14:41] [%emt 00:00:02]} 56.Kf3 {[%clk 00:10:39]
[%emt 00:00:07]} 56...Qxd4 {[%clk 00:14:37] [%emt 00:00:34]} 57.Qe3 {[%clk
00:08:41] [%emt 00:02:28]} 57...Qh8 {[%clk 00:11:52] [%emt 00:03:10]} 58.g5 
{[%clk 00:06:18] [%emt 00:02:59]} 58...Kd6 {[%clk 00:05:56] [%emt 00:06:25]} 
59.Kg3 {[%clk 00:05:34] [%emt 00:01:14]} 59...Qa1 {[%clk 00:05:19] [%emt
00:01:07]} 60.Kg4 {[%clk 00:04:48] [%emt 00:01:16]} 60...Qd1+ {[%clk 00:04:42]
[%emt 00:01:07]} 61.Qf3 {[%clk 00:04:58] [%emt 00:00:19]} 61...Qc2 {[%clk
00:01:56] [%emt 00:03:14]} 62.Qf6+ {[%clk 00:03:16] [%emt 00:02:14]} 62...Kc7 
{[%clk 00:02:25] [%emt 00:00:01]} 63.Qe7+ {[%clk 00:02:27] [%emt 00:01:19]} 
63...Kb6 {[%clk 00:01:21] [%emt 00:01:32]} 64.Qd6+ {[%clk 00:02:31] [%emt
00:00:27]} 64...Ka5 {[%clk 00:12:53] [%emt 00:03:55]} 65.g6 {[%clk 00:12:42]
[%emt 00:05:23]} 65...Qc6 {[%clk 00:11:11] [%emt 00:02:12]} 66.Qe5+ {[%clk
00:09:40] [%emt 00:03:32]} 66...Ka4 {[%clk 00:11:19] [%emt 00:00:19]} 67.Qf4+ 
{[%clk 00:09:59] [%emt 00:00:13]} 67...Ka5 {[%clk 00:11:05] [%emt 00:00:41]} 
68.Qg5+ {[%clk 00:04:51] [%emt 00:05:41]} 68...Ka4 {[%clk 00:10:42] [%emt
00:00:54]} 69.g7 {[%clk 00:04:36] [%emt 00:00:45]} 69...Qe6+ {[%clk 00:09:45]
[%emt 00:01:28]} 70.Qf5 {[%clk 00:04:32] [%emt 00:00:33]} 70...Qe2+ {[%clk
00:08:41] [%emt 00:01:35]} 71.Kg5 {[%clk 00:02:41] [%emt 00:02:21]} 71...Qe7+ 
{[%clk 00:09:05] [%emt 00:00:06]} 72.Qf6 {[%clk 00:02:31] [%emt 00:00:38]} 
72...Qc5+ {[%clk 00:09:29] [%emt 00:00:07]} 73.Kh6 {[%clk 00:01:50] [%emt
00:01:12]} 73...Qe3+ {[%clk 00:09:20] [%emt 00:00:39]} 74.Kh7 {[%clk 00:01:53]
[%emt 00:00:26]} 74...Qe4+ {[%clk 00:08:08] [%emt 00:01:43]} 75.Qg6 {[%clk
00:02:13] [%emt 00:00:10]} 75...Qh4+ {[%clk 00:08:09] [%emt 00:00:28]} 76.Qh6 
{[%clk 00:02:35] [%emt 00:00:08]} 76...Qe4+ {[%clk 00:08:27] [%emt 00:00:11]} 
77.Kh8 {[%clk 00:03:01] [%emt 00:00:05]} 77...Qe5 {[%clk 00:08:00] [%emt
00:00:53]} 78.Qh3 {[%clk 00:02:41] [%emt 00:00:53]} 78...Qd4 {[%clk 00:06:55]
[%emt 00:01:32]} 79.Qg3 {[%clk 00:02:58] [%emt 00:00:17]} 79...Qf6 {[%clk
00:06:21] [%emt 00:01:02]} 80.Qg4+ {[%clk 00:01:53] [%emt 00:01:36]} 80...Kxa3 
{[%clk 00:06:40] [%emt 00:00:13]} 81.Kh7 {[%clk 00:02:18] [%emt 00:00:05]} 
81...Qe7 {[%clk 00:06:26] [%emt 00:00:42]} 82.Qf4 {[%clk 00:01:28] [%emt
00:01:20]} 82...Qb7 {[%clk 00:05:17] [%emt 00:01:37]} 83.Qg3+ {[%clk 00:01:03]
[%emt 00:00:58]} 83...Ka4 {[%clk 00:03:45] [%emt 00:02:02]} 84.Qh4+ {[%clk
00:01:01] [%emt 00:00:33]} 84...Ka3 {[%clk 00:04:08] [%emt 00:00:08]} 85.Kh8 
{[%clk 00:00:43] [%emt 00:00:49]} 85...Qb2 {[%clk 00:04:08] [%emt 00:00:30]} 
86.Qe7+ {[%clk 00:00:45] [%emt 00:00:25]} 86...Ka2 {[%clk 00:04:35] [%emt
00:00:05]} 87.Kh7 {[%clk 00:00:41] [%emt 00:00:31]} 87...Qc2+ {[%clk 00:04:40]
[%emt 00:00:24]} 88.Kh6 {[%clk 00:00:48] [%emt 00:00:25]} 88...Qc6+ {[%clk
00:04:54] [%emt 00:00:17]} 89.Kg5 {[%clk 00:00:49] [%emt 00:00:29]} 89...Qd5+ 
{[%clk 00:05:12] [%emt 00:00:13]} 90.Kg6 {[%clk 00:01:06] [%emt 00:00:12]} 
90...Qd3+ {[%clk 00:04:59] [%emt 00:00:42]} 91.Kf6 {[%clk 00:00:40] [%emt
00:00:57]} 91...Qf3+ {[%clk 00:05:24] [%emt 00:00:06]} 92.Ke6 {[%clk 00:00:45]
[%emt 00:00:24]} 92...Qb3+ {[%clk 00:05:27] [%emt 00:00:28]} 93.Kd7 {[%clk
00:00:38] [%emt 00:00:36]} 93...Qb5+ {[%clk 00:05:52] [%emt 00:00:06]} 94.Kc7 
{[%clk 00:00:41] [%emt 00:00:26]} 94...Qc4+ {[%clk 00:05:47] [%emt 00:00:36]} 
95.Kb8 {[%clk 00:00:44] [%emt 00:00:26]} 95...Qb5+ {[%clk 00:05:50] [%emt
00:00:25]} 96.Qb7 {[%clk 00:00:35] [%emt 00:00:40]} 96...Qe8+ {[%clk 00:05:36]
[%emt 00:00:42]} 97.Qc8 {[%clk 00:00:43] [%emt 00:00:23]} 97...Qe5+ {[%clk
00:05:52] [%emt 00:00:16]} 98.Qc7 {[%clk 00:01:09] [%emt 00:00:04]} 98...Qe8+ 
{[%clk 00:06:01] [%emt 00:00:21]} 99.Ka7 {[%clk 00:01:21] [%emt 00:00:19]} 
99...Qe3+ {[%clk 00:05:59] [%emt 00:00:32]} 100.Ka6 {[%clk 00:01:26] [%emt
00:00:25]} 100...Qe6+ {[%clk 00:05:30] [%emt 00:00:59]} 101.Qb6 {[%clk 00:00:50]
[%emt 00:01:04]} 101...Qe2+ {[%clk 00:05:21] [%emt 00:00:40]} 102.Ka7 {[%clk
00:00:36] [%emt 00:00:45]} 102...Qe7+ {[%clk 00:05:47] [%emt 00:00:05]} 103.Qb7 
{[%clk 00:01:02] [%emt 00:00:03]} 103...Qe3+ {[%clk 00:06:04] [%emt 00:00:13]} 
104.Kb8 {[%clk 00:01:00] [%emt 00:00:31]} 104...Qe5+ {[%clk 00:06:17] [%emt
00:00:15]} 105.Kc8 {[%clk 00:01:11] [%emt 00:00:17]} 105...Qe8+ {[%clk 00:06:33]
[%emt 00:00:18]} 106.Kc7 {[%clk 00:01:35] [%emt 00:00:06]} 106...Qe7+ {[%clk
00:06:48] [%emt 00:00:15]} 107.Kc6 {[%clk 00:01:35] [%emt 00:00:27]} 107...Qe4+ 
{[%clk 00:07:17] [%emt 00:00:06]} 108.Kb6 {[%clk 00:01:58] [%emt 00:00:06]} 
108...Qe3+ {[%clk 00:07:43] [%emt 00:00:04]} 109.Kb5 {[%clk 00:02:11] [%emt
00:00:14]} 109...Qb3+ {[%clk 00:06:56] [%emt 00:01:19]} 110.Kc6 {[%clk 00:02:20]
[%emt 00:00:19]} 110...Qe6+ {[%clk 00:07:22] [%emt 00:00:06]} 111.Kc5 {[%clk
00:02:41] [%emt 00:00:09]} 111...Qe3+ {[%clk 00:07:40] [%emt 00:00:13]} 112.Kd6 
{[%clk 00:02:54] [%emt 00:00:16]} 112...Qh6+ {[%clk 00:08:06] [%emt 00:00:05]} 
113.Ke5 {[%clk 00:02:49] [%emt 00:00:34]} 113...Qg5+ {[%clk 00:08:29] [%emt
00:00:07]} 114.Kd4 {[%clk 00:03:10] [%emt 00:00:07]} 114...Qd2+ {[%clk 00:08:48]
[%emt 00:00:13]} 115.Kc5 {[%clk 00:03:20] [%emt 00:00:19]} 115...Qe3+ {[%clk
00:09:10] [%emt 00:00:09]} 1/2-1/2

[Event "FIDE Grand Swiss 2023"]
[Site "Villa Marina, Douglas, Isle of Man"]
[Date "2023.10.27"]
[Round "3.10"]
[White "Narayanan.S.L"]
[Black "Vitiugov, Nikita"]
[Result "1/2-1/2"]
[WhiteElo "2651"]
[BlackElo "2711"]
[EventDate "2023.10.25"]
[ECO "D45"]
[PlyCount "60"]
[BlackFideId "4152956"]
[TimeControl "40/100 + 20/50 + 15 + 30s/move"]
[WhiteFideId "5058422"]

1.d4 {[%clk 01:40:57] [%emt 00:00:02]} 1...Nf6 {[%clk 01:40:36] [%emt 00:00:24]} 
2.c4 {[%clk 01:41:20] [%emt 00:00:07]} 2...e6 {[%clk 01:41:01] [%emt 00:00:06]} 
3.Nf3 {[%clk 01:41:43] [%emt 00:00:05]} 3...d5 {[%clk 01:41:25] [%emt 00:00:06]} 
4.Nc3 {[%clk 01:42:02] [%emt 00:00:12]} 4...c6 {[%clk 01:41:27] [%emt 00:00:28]} 
5.e3 {[%clk 01:42:22] [%emt 00:00:09]} 5...Nbd7 {[%clk 01:41:47] [%emt
00:00:11]} 6.Be2 {[%clk 01:42:45] [%emt 00:00:07]} 6...Bd6 {[%clk 01:40:20]
[%emt 00:01:58]} 7.O-O {[%clk 01:43:06] [%emt 00:00:08]} 7...O-O {[%clk
01:40:35] [%emt 00:00:15]} 8.a4 {[%clk 01:42:41] [%emt 00:00:55]} 8...dxc4 
{[%clk 01:35:47] [%emt 00:05:18]} 9.Nd2 {[%clk 01:40:53] [%emt 00:02:17]} 
9...e5 {[%clk 01:35:29] [%emt 00:00:49]} 10.Nxc4 {[%clk 01:41:14] [%emt
00:00:08]} 10...Bc7 {[%clk 01:35:47] [%emt 00:00:13]} 11.a5 {[%clk 01:35:17]
[%emt 00:06:27]} 11...Re8 {[%clk 01:33:42] [%emt 00:02:36]} 12.d5 {[%clk
01:30:02] [%emt 00:05:45]} 12...cxd5 {[%clk 01:33:59] [%emt 00:00:13]} 13.Nxd5 
{[%clk 01:30:26] [%emt 00:00:05]} 13...Nxd5 {[%clk 01:34:26] [%emt 00:00:04]} 
14.Qxd5 {[%clk 01:30:51] [%emt 00:00:06]} 14...Nf6 {[%clk 01:34:42] [%emt
00:00:14]} 15.Qxd8 {[%clk 01:30:26] [%emt 00:00:55]} 15...Rxd8 {[%clk 01:35:05]
[%emt 00:00:07]} 16.b3 {[%clk 01:30:47] [%emt 00:00:09]} 16...Ne4 {[%clk
01:31:38] [%emt 00:03:57]} 17.Bb2 {[%clk 01:26:31] [%emt 00:04:45]} 17...Nd2 
{[%clk 01:27:16] [%emt 00:04:53]} 18.Rfd1 {[%clk 01:23:08] [%emt 00:03:53]} 
18...Nxb3 {[%clk 01:27:25] [%emt 00:00:21]} 19.Rxd8+ {[%clk 01:23:19] [%emt
00:00:19]} 19...Bxd8 {[%clk 01:27:52] [%emt 00:00:04]} 20.Ra3 {[%clk 01:23:32]
[%emt 00:00:16]} 20...Nc5 {[%clk 01:27:48] [%emt 00:00:34]} 21.Bxe5 {[%clk
01:23:25] [%emt 00:00:37]} 21...Be6 {[%clk 01:23:16] [%emt 00:05:02]} 22.f3 
{[%clk 01:14:27] [%emt 00:09:27]} 22...Be7 {[%clk 01:13:29] [%emt 00:10:19]} 
23.Bd6 {[%clk 00:58:30] [%emt 00:16:26]} 23...Kf8 {[%clk 01:08:27] [%emt
00:05:32]} 24.e4 {[%clk 00:58:26] [%emt 00:00:34]} 24...Rc8 {[%clk 01:04:03]
[%emt 00:04:55]} 25.Bxe7+ {[%clk 00:55:24] [%emt 00:03:31]} 25...Kxe7 {[%clk
01:04:29] [%emt 00:00:04]} 26.Ne3 {[%clk 00:55:03] [%emt 00:00:51]} 26...g6 
{[%clk 00:53:53] [%emt 00:11:06]} 27.Kf2 {[%clk 00:51:54] [%emt 00:03:38]} 
27...Rd8 {[%clk 00:46:48] [%emt 00:07:36]} 28.Nc4 {[%clk 00:46:35] [%emt
00:05:49]} 28...Rc8 {[%clk 00:37:06] [%emt 00:10:13]} 29.Ne3 {[%clk 00:46:15]
[%emt 00:00:49]} 29...Rd8 {[%clk 00:37:23] [%emt 00:00:14]} 30.Nc4 {[%clk
00:45:08] [%emt 00:01:37]} 30...Rc8 {[%clk 00:37:21] [%emt 00:00:32]} 1/2-1/2

[Event "FIDE Grand Swiss 2023"]
[Site "Villa Marina, Douglas, Isle of Man"]
[Date "2023.10.27"]
[Round "3.11"]
[White "Maghsoodloo, Parham"]
[Black "Korobov, Anton"]
[Result "1/2-1/2"]
[WhiteElo "2707"]
[BlackElo "2658"]
[EventDate "2023.10.25"]
[ECO "A36"]
[PlyCount "74"]
[BlackFideId "14105730"]
[TimeControl "40/100 + 20/50 + 15 + 30s/move"]
[WhiteFideId "12539929"]

1.c4 {[%clk 01:40:58] [%emt 00:00:01]} 1...c5 {[%clk 01:40:12] [%emt 00:00:48]} 
2.Nc3 {[%clk 01:41:21] [%emt 00:00:07]} 2...Nc6 {[%clk 01:39:40] [%emt
00:01:02]} 3.g3 {[%clk 01:41:11] [%emt 00:00:39]} 3...g6 {[%clk 01:39:45] [%emt
00:00:26]} 4.Bg2 {[%clk 01:41:01] [%emt 00:00:40]} 4...Bg7 {[%clk 01:40:08]
[%emt 00:00:06]} 5.a3 {[%clk 01:33:09] [%emt 00:08:22]} 5...d6 {[%clk 01:34:24]
[%emt 00:06:14]} 6.Rb1 {[%clk 01:32:14] [%emt 00:01:26]} 6...a5 {[%clk 01:30:08]
[%emt 00:04:46]} 7.d3 {[%clk 01:30:07] [%emt 00:02:37]} 7...Nf6 {[%clk 01:26:16]
[%emt 00:04:22]} 8.e3 {[%clk 01:23:11] [%emt 00:07:25]} 8...O-O {[%clk 01:13:18]
[%emt 00:13:29]} 9.Nge2 {[%clk 01:21:40] [%emt 00:02:01]} 9...Bd7 {[%clk
01:09:28] [%emt 00:04:20]} 10.O-O {[%clk 01:19:24] [%emt 00:02:47]} 10...Rb8 
{[%clk 01:06:24] [%emt 00:03:33]} 11.Nb5 {[%clk 01:14:43] [%emt 00:05:11]} 
11...Qc8 {[%clk 01:01:01] [%emt 00:05:52]} 12.Nf4 {[%clk 01:10:17] [%emt
00:04:56]} 12...Ne5 {[%clk 00:57:42] [%emt 00:03:49]} 13.b3 {[%clk 00:55:08]
[%emt 00:15:39]} 13...g5 {[%clk 00:48:16] [%emt 00:09:56]} 14.Ne2 {[%clk
00:54:56] [%emt 00:00:42]} 14...g4 {[%clk 00:42:11] [%emt 00:06:36]} 15.Bb2 
{[%clk 00:52:52] [%emt 00:02:34]} 15...Nf3+ {[%clk 00:36:20] [%emt 00:06:20]} 
16.Kh1 {[%clk 00:52:59] [%emt 00:00:24]} 16...Bxb5 {[%clk 00:32:03] [%emt
00:04:47]} 17.cxb5 {[%clk 00:53:03] [%emt 00:00:27]} 17...Qf5 {[%clk 00:32:28]
[%emt 00:00:04]} 18.e4 {[%clk 00:47:00] [%emt 00:06:32]} 18...Qd7 {[%clk
00:28:09] [%emt 00:04:49]} 19.Bxf6 {[%clk 00:46:42] [%emt 00:00:49]} 19...Bxf6 
{[%clk 00:28:16] [%emt 00:00:23]} 20.Bxf3 {[%clk 00:47:05] [%emt 00:00:07]} 
20...gxf3 {[%clk 00:28:40] [%emt 00:00:06]} 21.Nf4 {[%clk 00:47:30] [%emt
00:00:05]} 21...Qxb5 {[%clk 00:28:24] [%emt 00:00:46]} 22.Nd5 {[%clk 00:45:52]
[%emt 00:02:07]} 22...Qd7 {[%clk 00:26:38] [%emt 00:02:16]} 23.Nxf6+ {[%clk
00:39:22] [%emt 00:07:01]} 23...exf6 {[%clk 00:26:47] [%emt 00:00:21]} 24.Re1 
{[%clk 00:39:09] [%emt 00:00:43]} 24...Rfe8 {[%clk 00:23:53] [%emt 00:03:24]} 
25.Re3 {[%clk 00:34:29] [%emt 00:05:09]} 25...Re6 {[%clk 00:18:18] [%emt
00:06:05]} 26.Qxf3 {[%clk 00:32:18] [%emt 00:02:42]} 26...Rd8 {[%clk 00:17:48]
[%emt 00:01:00]} 27.Rc1 {[%clk 00:25:42] [%emt 00:07:07]} 27...a4 {[%clk
00:16:30] [%emt 00:01:48]} 28.Qd1 {[%clk 00:21:14] [%emt 00:04:57]} 28...axb3 
{[%clk 00:13:52] [%emt 00:03:07]} 29.Qxb3 {[%clk 00:21:39] [%emt 00:00:05]} 
29...f5 {[%clk 00:13:42] [%emt 00:00:41]} 30.exf5 {[%clk 00:14:37] [%emt
00:07:32]} 30...Rxe3 {[%clk 00:14:05] [%emt 00:00:06]} 31.fxe3 {[%clk 00:15:05]
[%emt 00:00:02]} 31...Qxf5 {[%clk 00:14:10] [%emt 00:00:25]} 32.Kg2 {[%clk
00:15:23] [%emt 00:00:12]} 32...Rd7 {[%clk 00:06:47] [%emt 00:07:51]} 33.Rc4 
{[%clk 00:14:47] [%emt 00:01:08]} 33...Qh5 {[%clk 00:05:24] [%emt 00:01:53]} 
34.Re4 {[%clk 00:09:04] [%emt 00:06:14]} 34...Qe2+ {[%clk 00:05:22] [%emt
00:00:31]} 35.Kg1 {[%clk 00:09:31] [%emt 00:00:04]} 35...Qe1+ {[%clk 00:04:35]
[%emt 00:01:17]} 36.Kg2 {[%clk 00:10:00]} 36...Qe2+ {[%clk 00:04:45] [%emt
00:00:20]} 37.Kg1 {[%clk 00:10:26] [%emt 00:00:04]} 37...Qe1+ {[%clk 00:05:07]
[%emt 00:00:07]} 1/2-1/2